{"text_format":"1","workbook":"xlsx","n_sheets":9,"sheets":["Foglio inserimento dati","Foglio di calcolo oneri","Province","Impianti di trattamento","Capacità di stoccaggio","Volumetria discariche","Unità impiantistiche","Riduzioni istanze","Riduzioni certificazioni"],"not_rendered":{"charts":0,"images":1,"macros":1,"external_links":0,"defined_names":2,"comments":0,"pivot_tables":0},"unopened":[],"bounds":{"document_bytes":16777216,"sheet_cells":100000,"rows_first":2000,"rows_last":500,"rows_between":2000,"halvings":0,"cell_chars":16384,"cell_head_chars":4096},"cells_cut":0,"cells_raw":0,"read":"whole","date_system":"1900"}

{"sheet":"Foglio inserimento dati","index":0,"n_rows":38,"n_cols":5,"rows_kept":38,"cut":false,"hidden":false,"merged":[[10,2,10,4],[6,2,6,4],[11,2,11,4],[36,1,36,4],[32,2,32,3],[31,1,31,4],[13,1,13,4],[14,1,14,4],[19,1,19,4],[27,1,27,4],[24,3,24,4],[0,1,0,5],[7,2,7,4],[8,2,8,4],[9,2,9,4],[5,3,5,4],[1,2,1,4],[2,2,2,4],[3,2,3,4],[4,2,4,3]]}
[null,"                        FOGLIO DI CALCOLO DEGLI ONERI DI ISTRUTTORIA"]
[null,"Ragione sociale  *"]
[null,"Indirizzo "]
[null,"Comune "]
[null,"Provincia"]
[null,"N° unità impiantistiche"]
[null,"Tipologia unità impiantistiche *"]
[]
[]
[]
[]
[null,"Tipo di istanza *"]
[]
[]
[null,"Solo rifiuti non pericolosi  RNP"]
[null,"Potenzialità annua **","Potenzialità giornaliera","Capacità massima deposito **","Potenzialità giornaliera calcolata"]
[null,"Mg/anno","Mg/die","m3","Mg/die"]
[null,0,0,0,{"$f":"IF(C25=0,0,B18/C25)","v":0}]
[]
[null,"Solo rifiuti pericolosi RP / Combinazione RNP e RP"]
[null,"Potenzialità annua **","Potenzialità giornaliera","Capacità massima deposito **","Potenzialità giornaliera calcolata"]
[null,"Mg/anno","Mg/die","m3","Mg/die"]
[null,0,0,0,{"$f":"IF(C25=0,0,B23/C25)","v":0}]
[]
[null,"Giorni funzionamento impianto",0,0]
[]
[]
[null,"   Discariche"]
[]
[null,"Volumetria  (m3) **",0]
[]
[null,"Certificazione impianto"]
[null,"Certificazione impianto *"]
[]
[]
[null,"Oneri istruttoria ",{"$f":"'Foglio di calcolo oneri'!B27","v":{"$error":"#N/A"}}]
[]
[null,"* dati obbligatori","** dati alternativi da inserirre in funzione della tipologia impiantistica"]

{"sheet":"Foglio di calcolo oneri","index":1,"n_rows":27,"n_cols":3,"rows_kept":27,"cut":false,"hidden":true,"merged":[]}
["Rifiuti Non Pericolosi"]
["Potenzialità giornaliera calcolata","Potenzialità giornaliera","Valore per il calcolo"]
[{"$f":"'Foglio inserimento dati'!E18","v":0},{"$f":"'Foglio inserimento dati'!C18","v":0},{"$f":"IF(A3 >B3,A3,B3)","v":0}]
["Rifiuti pericolosi"]
["Potenzialità giornaliera calcolata","Potenzialità giornaliera"]
[{"$f":"'Foglio inserimento dati'!E23","v":0},{"$f":"'Foglio inserimento dati'!C23","v":0},{"$f":"IF(A6>B6,A6,B6)","v":0}]
[]
[]
["% potenzialita RNP",{"$f":"'Impianti di trattamento'!M9","v":0}]
["% Capacita massima RNP",{"$f":"'Capacità di stoccaggio'!L9","v":0}]
["% potenzialita RP",{"$f":"'Impianti di trattamento'!M21","v":0}]
["% Capacita massima RP",{"$f":"'Capacità di stoccaggio'!L19","v":0}]
[]
["% volumetria discarica",{"$f":"'Volumetria discariche'!M9","v":0}]
[]
["C base",2500]
["C rnp",{"$f":"(B16*B9)+(B16*B10)","v":0}]
["C rp",{"$f":"(B16*B11)+(B16*B12)","v":0}]
["C disc",{"$f":"B16*B14","v":0}]
["C impianto",{"$f":"B17+B18+B19","v":0}]
["Tipo istanza ",{"$f":"'Riduzioni istanze'!F16","v":{"$error":"#N/A"}}]
["% riduzione per istanza",{"$f":"'Riduzioni istanze'!F14","v":{"$error":"#N/A"}}]
["C impianto ridotta",{"$f":"B20*(1-B22/100)","v":{"$error":"#N/A"}}]
["% riduzione per certificazione",{"$f":"'Riduzioni certificazioni'!F8","v":{"$error":"#N/A"}}]
[null,{"$f":"B23*(1-B24/100)","v":{"$error":"#N/A"}}]
["Ctariffa",{"$f":"IF(B25<200,200,B25)","v":{"$error":"#N/A"}}]
["C tariffa da pagare",{"$f":"IF(B21=3,200,IF(B21=6,200, IF(B21=7, 200, IF(B21=8,200,B26))))","v":{"$error":"#N/A"}}]

{"sheet":"Province","index":2,"n_rows":6,"n_cols":2,"rows_kept":6,"cut":false,"hidden":true,"merged":[]}
["Province"]
["ID","Provincia"]
[1,"Gorizia"]
[2,"Pordenone"]
[3,"Trieste"]
[4,"Udine"]

{"sheet":"Impianti di trattamento","index":3,"n_rows":21,"n_cols":13,"rows_kept":21,"cut":false,"hidden":true,"merged":[]}
["Potenzialità giornaliera RNP"]
["Range potenzialità",null,"% potenzialità RNP",null,"% potenzialità RNP",null,{"$f":"'Foglio di calcolo oneri'!C3","v":0}]
["Minimo","Massimo"]
[0,0,0,1,0,null,{"$f":"IF($G$2=0,D4,\" \")","v":1},{"$f":"IF($G$2 =0,D4,\" \")","v":1},{"$f":"IF(G4=1,IF(H4=1,1,),0)","v":1}]
[0.01,10,0.05,2,0.05,null,{"$f":"IF($G$2 <=B5,D5,\" \")","v":2},{"$f":"IF($G$2 >=A5,D5,\" \")","v":" "},{"$f":"IF(G5=2,IF(H5=2,2,0),0)","v":0}]
[10.01,30,0.1,3,0.1,null,{"$f":"IF($G$2 <=B6,D6,\" \")","v":3},{"$f":"IF($G$2 >=A6,D6,\" \")","v":" "},{"$f":"IF(G6=3,IF(H6=3,3,0),0)","v":0}]
[30.01,100,0.24,4,0.24,null,{"$f":"IF($G$2 <=B7,D7,\" \")","v":4},{"$f":"IF($G$2 >=A7,D7,\" \")","v":" "},{"$f":"IF(G7=4,IF(H7=4,4,0),0)","v":0}]
[100.01,300,0.36,5,0.36,null,{"$f":"IF($G$2 <=B8,D8,\" \")","v":5},{"$f":"IF($G$2 >=A8,D8,\" \")","v":" "},{"$f":"IF(G8=5,IF(H8=5,5,0),0)","v":0}]
[300.01,2000,0.6,6,0.6,null,{"$f":"IF($G$2 <=B9,D9,\" \")","v":6},{"$f":"IF($G$2 >=A9,D9,\" \")","v":" "},{"$f":"IF(G9=6,IF(H9=6,6,0),0)","v":0},null,{"$f":"I4+I5+I6+I7+I8+I9","v":1},null,{"$f":"VLOOKUP(K9,D4:E9,2)","v":0}]
[]
[]
[]
["Potenzialità giornaliera RP / combinazione RP e RNP",null,null,null,null,null,{"$f":"'Foglio di calcolo oneri'!C6","v":0}]
["Range potenzialità",null,"% potenzialità RP",null,"% potenzialità RP"]
["Minimo","Massimo"]
[0,0,0,1,0,null,{"$f":"IF($G$13=0,D16,\" \")","v":1},{"$f":"IF($G$13 =0,D16,\" \")","v":1},{"$f":"IF(G16=1,IF(H16=1,1,0),0)","v":1}]
[0.01,1,0.1,2,0.1,null,{"$f":"IF($G$13 <=B17,D17,\" \")","v":2},{"$f":"IF($G$13 >=A17,D17,\" \")","v":" "},{"$f":"IF(G17=2,IF(H17=2,2,0),0)","v":0}]
[1.01,10,0.2,3,0.2,null,{"$f":"IF($G$13 <=B18,D18,\" \")","v":3},{"$f":"IF($G$13 >=A18,D18,\" \")","v":" "},{"$f":"IF(G18=3,IF(H18=3,3,0),0)","v":0}]
[10.01,20,0.44,4,0.44,null,{"$f":"IF($G$13 <=B19,D19,\" \")","v":4},{"$f":"IF($G$13 >=A19,D19,\" \")","v":" "},{"$f":"IF(G19=4,IF(H19=4,4,0),0)","v":0}]
[20.010000000000002,50,0.64,5,0.64,null,{"$f":"IF($G$13 <=B20,D20,\" \")","v":5},{"$f":"IF($G$13 >=A20,D20,\" \")","v":" "},{"$f":"IF(G20=5,IF(H20=5,5,0),0)","v":0}]
[50.01,1000,1,6,1,null,{"$f":"IF($G$13 <=B21,D21,\" \")","v":6},{"$f":"IF($G$13 >=A21,D21,\" \")","v":" "},{"$f":"IF(G21=6,IF(H21=6,6,0),0)","v":0},null,{"$f":"I16+I17+I18+I19+I20+I21","v":1},null,{"$f":"VLOOKUP(K21,D16:E21,2)","v":0}]

{"sheet":"Capacità di stoccaggio","index":4,"n_rows":19,"n_cols":12,"rows_kept":19,"cut":false,"hidden":true,"merged":[]}
[null,"Capacità massima di stoccagio RNP"]
[null,"Range capacità massima",null,"% capacità RNP",null,null,{"$f":"'Foglio inserimento dati'!D18","v":0}]
[null,"Minimo","Massimo"]
[1,0,0,0,null,{"$f":"IF($G$2=0,A4,\" \")","v":1},{"$f":"IF($G$2 =0,A4,\" \")","v":1},{"$f":"IF(F4=1,IF(G4=1,1,),0)","v":1}]
[2,0.01,10000,0.1,null,{"$f":"IF($G$2 <=C5,A5,\" \")","v":2},{"$f":"IF($G$2 >=B5,A5,\" \")","v":" "},{"$f":"IF(F5=2,IF(G5=2,2,0),0)","v":0}]
[3,10000.01,100000,0.36,null,{"$f":"IF($G$2 <=C6,A6,\" \")","v":3},{"$f":"IF($G$2 >=B6,A6,\" \")","v":" "},{"$f":"IF(F6=3,IF(G6=3,3,0),0)","v":0}]
[4,100000.01,1000000,0.6,null,{"$f":"IF($G$2 <=C7,A7,\" \")","v":4}," ",{"$f":"IF(F7=4,IF(G7=4,4,0),0)","v":0}]
[]
[null,null,null,null,null,null,null,null,null,{"$f":"H4+H5+H6+H7","v":1},null,{"$f":"VLOOKUP(J9,A4:D7,4)","v":0}]
[]
[null,"Capacità massima di stoccaggio  RP / combinazione RP e RNP",null,null,null,null,{"$f":"'Foglio inserimento dati'!D23","v":0}]
[null,"Range capacità massima",null,"% capacità RNP"]
[null,"Minimo","Massimo"]
[1,0,0,0,null,{"$f":"IF($G$11=0,A14,\" \")","v":1},{"$f":"IF($G$11 =0,A14,\" \")","v":1},{"$f":"IF(F14=1,IF(G14=1,1,),0)","v":1}]
[2,0.01,5000,0.2,null,{"$f":"IF($G$11 <=C15,A15,\" \")","v":2},{"$f":"IF($G$11 >=B15,A15,\" \")","v":" "},{"$f":"IF(F15=2,IF(G15=2,2,0),0)","v":0}]
[3,5000,10000,0.7,null,{"$f":"IF($G$11 <=C16,A16,\" \")","v":3},{"$f":"IF($G$11 >=B16,A16,\" \")","v":" "},{"$f":"IF(F16=3,IF(G16=3,3,0),0)","v":0}]
[4,10000,null,1,null,4," ",{"$f":"IF(F17=4,IF(G17=4,4,0),0)","v":0}]
[]
[null,null,null,null,null,null,null,null,null,{"$f":"H14+H15+H16+H17","v":1},null,{"$f":"VLOOKUP(J19,A14:D17,4)","v":0}]

{"sheet":"Volumetria discariche","index":5,"n_rows":9,"n_cols":13,"rows_kept":9,"cut":false,"hidden":true,"merged":[]}
[null,"Volumetria discariche"]
[null,"Range capacità massima",null,"% volumetrie",null,null,{"$f":"'Foglio inserimento dati'!C30","v":0}]
[null,"Minimo","Massimo"]
[1,0,0,0,null,null,{"$f":"IF($G$2=0,A4,\" \")","v":1},{"$f":"IF($G$2 =0,A4,\" \")","v":1},{"$f":"IF(G4=1,IF(H4=1,1,),0)","v":1}]
[2,0.01,50000,0.2,null,null,{"$f":"IF($G$2 <=C5,A5,\" \")","v":2},{"$f":"IF($G$2 >=B5,A5,\" \")","v":" "},{"$f":"IF(G5=2,IF(H5=2,2,0),0)","v":0}]
[3,50000.01,100000,0.7,null,null,{"$f":"IF($G$2 <=C6,A6,\" \")","v":3},{"$f":"IF($G$2 >=B6,A6,\" \")","v":" "},{"$f":"IF(G6=3,IF(H6=3,3,0),0)","v":0}]
[4,100000.01,1000000,1,null,null,{"$f":"IF($G$2 <=C7,A7,\" \")","v":4},{"$f":"IF($G$2 >=B7,A7,\" \")","v":" "},{"$f":"IF(G7=4,IF(H7=4,4,0),0)","v":0}]
[]
[null,null,null,null,null,null,null,null,null,null,{"$f":"I4+I5+I6+I7","v":1},null,{"$f":"VLOOKUP(K9,A4:D7,4)","v":0}]

{"sheet":"Unità impiantistiche","index":6,"n_rows":83,"n_cols":5,"rows_kept":83,"cut":false,"hidden":true,"merged":[]}
["ID","Categoria","Unità impiantistica","Attività","Unità impiantistica SIRR"]
[2,"Discarica","Discarica inerti","D1","Discarica - Discarica inerti - attività D1"]
[3,"Discarica","Discarica rifiuti non pericolosi","D1","Discarica - Discarica rifiuti non pericolosi - attività D1"]
[4,"Discarica","Discarica rifiuti pericolosi","D1","Discarica - Discarica rifiuti pericolosi - attività D1"]
[5,"Stoccaggio","Deposito preliminare ","D15","Stoccaggio - Deposito preliminare - attività D15"]
[6,"Stoccaggio","Messa in riserva","R13","Stoccaggio - Messa in riserva - attività R13"]
[7,"Selezione/recupero meccanico ","Accorpamento/riconfezionamento","R12","Selezione/recupero meccanico - Accorpamento/riconfezionamento - attività R12"]
[8,"Selezione/recupero meccanico","Accorpamento/riconfezionamento","D14","Selezione/recupero meccanico - Accorpamento/riconfezionamento - attività D14"]
[9,"Selezione/recupero meccanico","Selezione cernita riduzione volumetrica","R12","Selezione/recupero meccanico - Selezione cernita riduzione volumetrica - attività R12"]
[10,"Selezione/recupero meccanico","Selezione cernita riduzione volumetrica","D14","Selezione/recupero meccanico - Selezione cernita riduzione volumetrica - attività D14"]
[11,"Selezione/recupero meccanico","Rottamazione","R12","Selezione/recupero meccanico - Rottamazione - attività R12"]
[12,"Selezione/recupero meccanico","Frantumazione","R12","Selezione/recupero meccanico - Frantumazione - attività R12"]
[13,"Selezione/recupero meccanico","Frantumazione","D14","Selezione/recupero meccanico - Frantumazione - attività D14"]
[14,"Selezione/recupero meccanico","Recupero carta","R3","Selezione/recupero meccanico - Recupero carta - attività R3"]
[15,"Selezione/recupero meccanico","Recupero legno","R3","Selezione/recupero meccanico - Recupero legno - attività R3"]
[16,"Selezione/recupero meccanico","Recupero plastica","R3","Selezione/recupero meccanico - Recupero plastica - attività R3"]
[17,"Selezione/recupero meccanico","Recupero pneumatici","R3","Selezione/recupero meccanico - Recupero pneumatici - attività R3"]
[18,"Selezione/recupero meccanico","Recupero metalli","R4","Selezione/recupero meccanico - Recupero metalli - attività R4"]
[19,"Selezione/recupero meccanico","Recupero inerti","R5","Selezione/recupero meccanico - Recupero inerti - attività R5"]
[20,"Selezione/recupero meccanico","Recupero vetro","R5","Selezione/recupero meccanico - Recupero vetro - attività R5"]
[21,"Selezione/recupero meccanico","Recupero tessili","R3","Selezione/recupero meccanico - Recupero tessili - attività R3"]
[22,"Termico","Fusione metalli","R4","Termico - Fusione metalli - attività R4"]
[23,"Termico","Utilizzo in cementifici","R5","Termico - Utilizzo in cementifici - attività R5"]
[24,"Industriale","Industria dei metalli","R4","Industriale - Industria dei metalli - attività R4"]
[25,"Industriale","Industria dei metalli","R5","Industriale - Industria dei metalli - attività R5"]
[26,"Industriale","Industria della carta, del legno, della plastica, della gomma, tessile","R3","Industriale - Industria della carta, del legno, della plastica, della gomma, tessile - attività R3"]
[27,"Industriale","Industria della carta, del legno, della plastica, della gomma, tessile","R5","Industriale - Industria della carta, del legno, della plastica, della gomma, tessile - attività R5"]
[28,"Industriale","Industria delle costruzioni, edilizia","R3","Industriale - Industria delle costruzioni, edilizia - attività R3"]
[29,"Industriale","Industria delle costruzioni, edilizia","R5","Industriale - Industria delle costruzioni, edilizia - attività R5"]
[30,"Industriale","Industria chimica","R3","Industriale - Industria chimica - attività R3"]
[31,"Industriale","Industria chimica","R4","Industriale - Industria chimica - attività R4"]
[32,"Industriale","Industria chimica","R5","Industriale - Industria chimica - attività R5"]
[33,"Energetico","Biogas da digestione anaerobia o da discarica","R1","Energetico - Biogas da digestione anaerobia o da discarica - attività R1"]
[34,"Energetico","Coincenerimento escluso dal d. lgs. 133/2005","R1","Energetico - Coincenerimento escluso dal d. lgs. 133/2005 - attività R1"]
[35,"Energetico","Gas di sintesi","R1","Energetico - Gas di sintesi - attività R1"]
[36,"Ambientale","Recupero morfologico-ambientale","R10","Ambientale - Recupero morfologico-ambientale - attività R10"]
[37,"Ambientale","Spandimento fanghi","R10","Ambientale - Spandimento fanghi - attività R10"]
[38,"Infrastrutturale","Rilevati e sottofondi stradali","R5","Infrastrutturale - Rilevati e sottofondi stradali - attività R5"]
[39,"Chimico fisico biologico","Rigenerazione/recupero solventi","R2","Chimico fisico biologico - Rigenerazione/recupero solventi - attività R2"]
[40,"Chimico fisico biologico","Rigenerazione degli acidi e delle basi","R6","Chimico fisico biologico - Rigenerazione degli acidi e delle basi - attività R6"]
[41,"Chimico fisico biologico","Recupero acque di falda","R5","Chimico fisico biologico - Recupero acque di falda - attività R5"]
[42,"Chimico fisico biologico","Recupero dei prodotti che servono a captare gli inquinanti","R7","Chimico fisico biologico - Recupero dei prodotti che servono a captare gli inquinanti - attività R7"]
[43,"Chimico fisico biologico","Recupero dei prodotti provenienti dai catalizzatori","R8","Chimico fisico biologico - Recupero dei prodotti provenienti dai catalizzatori - attività R8"]
[44,"Chimico fisico biologico","Rigenerazione o altri impieghi degli olii","R9","Chimico fisico biologico - Rigenerazione o altri impieghi degli olii - attività R9"]
[45,"Chimico fisico biologico","Produzione di gas di sintesi da pirolisi e gassificazione","R3","Chimico fisico biologico - Produzione di gas di sintesi da pirolisi e gassificazione - attività R3"]
[46,"Chimico fisico biologico","Produzione fertilizzanti","R3","Chimico fisico biologico - Produzione fertilizzanti - attività R3"]
[47,"Chimico fisico biologico","Trattamento dei fanghi","R3","Chimico fisico biologico - Trattamento dei fanghi - attività R3"]
[48,"Chimico fisico biologico","Trattamento rifiuti liquidi","R3","Chimico fisico biologico - Trattamento rifiuti liquidi - attività R3"]
[49,"Chimico fisico biologico","Trattamento rifiuti liquidi","R12","Chimico fisico biologico - Trattamento rifiuti liquidi - attività R12"]
[50,"Chimico fisico biologico","Trattamento rifiuti liquidi","D8","Chimico fisico biologico - Trattamento rifiuti liquidi - attività D8"]
[51,"Chimico fisico biologico","Trattamento rifiuti liquidi","D9","Chimico fisico biologico - Trattamento rifiuti liquidi - attività D9"]
[52,"Chimico fisico biologico","Trattamento rifiuti liquidi","D13","Chimico fisico biologico - Trattamento rifiuti liquidi - attività D13"]
[53,"Chimico fisico biologico","Sterilizzazione","D9","Chimico fisico biologico - Sterilizzazione - attività D9"]
[54,"Chimico fisico biologico","Inertizzazione","R12","Chimico fisico biologico - Inertizzazione - attività R12"]
[55,"Chimico fisico biologico","Inertizzazione","D9","Chimico fisico biologico - Inertizzazione - attività D9"]
[56,"Miscelazione","Miscelazione non in deroga con CER diverso","D13","Miscelazione - Miscelazione non in deroga con CER diverso - attività D13"]
[57,"Miscelazione","Miscelazione non in deroga con CER diverso","R12","Miscelazione - Miscelazione non in deroga con CER diverso - attività R12"]
[58,"Miscelazione","Miscelazione in deroga art. 187 d.lgs 152/2006","D9","Miscelazione - Miscelazione in deroga art. 187 d.lgs 152/2006 - attività D9"]
[59,"Miscelazione","Miscelazione in deroga art. 187 d.lgs 152/2006","R12","Miscelazione - Miscelazione in deroga art. 187 d.lgs 152/2006 - attività R12"]
[60,"Meccanico - biologico","Compostaggio ACM","R3","Meccanico - biologico - Compostaggio ACM - attività R3"]
[61,"Meccanico - biologico","Compstaggio ACV","R3","Meccanico - biologico - Compstaggio ACV - attività R3"]
[62,"Meccanico - biologico","Digestione anaerobica","R3","Meccanico - biologico - Digestione anaerobica - attività R3"]
[63,"Meccanico - biologico","Produzione di CSS","R3","Meccanico - biologico - Produzione di CSS - attività R3"]
[64,"Meccanico - biologico","Produzione biosabilizzato","D8","Meccanico - biologico - Produzione biosabilizzato - attività D8"]
[65,"Meccanico - biologico","Produzione biosabilizzato","R3","Meccanico - biologico - Produzione biosabilizzato - attività R3"]
[66,"Meccanico - biologico","Separazione secco - umido","R12","Meccanico - biologico - Separazione secco - umido - attività R12"]
[67,"Meccanico - biologico","Separazione secco - umido","D13","Meccanico - biologico - Separazione secco - umido - attività D13"]
[68,"Trattamento RAEE","Deposito preliminare RAEE","D15","Trattamento RAEE - Deposito preliminare RAEE - attività D15"]
[69,"Trattamento RAEE","Messa in riserva RAEE","R13","Trattamento RAEE - Messa in riserva RAEE - attività R13"]
[70,"Trattamento RAEE","Messa in sicurezza e selezione RAEE","R12","Trattamento RAEE - Messa in sicurezza e selezione RAEE - attività R12"]
[71,"Trattamento RAEE","Messa in sicurezza e selezione RAEE","D13","Trattamento RAEE - Messa in sicurezza e selezione RAEE - attività D13"]
[72,"Trattamento RAEE","Recupero RAEE","R3","Trattamento RAEE - Recupero RAEE - attività R3"]
[73,"Trattamento RAEE","Recupero RAEE","R4","Trattamento RAEE - Recupero RAEE - attività R4"]
[74,"Trattamento RAEE","Recupero RAEE","R5","Trattamento RAEE - Recupero RAEE - attività R5"]
[75,"Autodemolizione","Autodemolizione","R12","Autodemolizione - Autodemolizione - attività R12"]
[76,"Autodemolizione","Autorottamazione","R12","Autodemolizione - Autorottamazione - attività R12"]
[77,"Frantumazione","Frantumazione veicoli fuori uso","R12","Frantumazione - Frantumazione veicoli fuori uso - attività R12"]
[78,"Frantumazione","Frantumazione veicoli fuori uso","R4","Frantumazione - Frantumazione veicoli fuori uso - attività R4"]
[79,"Incenerimento","Incenerimento","D10","Incenerimento - Incenerimento - attività D10"]
[80,"Incenerimento","Incenerimento con recupero di energia","R1","Incenerimento - Incenerimento con recupero di energia - attività R1"]
[81,"Incenerimento","Gassificazione","R1","Incenerimento - Gassificazione - attività R1"]
[82,"Incenerimento","Pirolisi","R1","Incenerimento - Pirolisi - attività R1"]
[83,"Incenerimento","Coincenerimento","R1","Incenerimento - Coincenerimento - attività R1"]

{"sheet":"Riduzioni istanze","index":7,"n_rows":16,"n_cols":6,"rows_kept":16,"cut":false,"hidden":true,"merged":[]}
[]
["Istanza",null,"Percentuale riduzione"]
["Autorizzazione Unica nuovo impianto",1,0]
["Autorizzazione progetto di variante - L.R. 34/2017 art. 15, comma 2 lettera b)",2,0]
["Autorizzazione esercizio impianti mobili",3,0]
["Rinnovo autorizzazione",4,35]
["Conferma autorizzazione",5,50]
["Comunicazione attività di recupero in regime semplificato (Artt. 214, 215, 216 D. Lgs. 152/06)",6,0]
["Comunicazione di campagna mobile (Art. 208, comma 15 D.Lgs 152/06)",7,0]
["Autorizzazione alla deroga ai vincoli (Art. 15, commi 3 e 5 L.R. 34/17)",8,0]
["Autorizzazione progetto di variante - non ricompreso L.R. 34/2017 art. 15, comma 2 lettera b)",10,70,null,null,{"$f":"'Foglio inserimento dati'!C12","v":0}]
[]
[]
[null,null,null,null,null,{"$f":"VLOOKUP(F11,A3:C11,3,FALSE)","v":{"$error":"#N/A"}}]
[]
[null,null,null,null,null,{"$f":"VLOOKUP(F11,A3:C11,2,FALSE)","v":{"$error":"#N/A"}}]

{"sheet":"Riduzioni certificazioni","index":8,"n_rows":8,"n_cols":6,"rows_kept":8,"cut":false,"hidden":true,"merged":[]}
["Certificazioni"]
["ID elenco indirizzi","Nome","% Riduzione costi CSGA"]
[1,"Certificazione ISO",15]
[2,"Certificazione EMAS",35]
[3,"NO certificazione",0]
[null,null,null,null,null,{"$f":"'Foglio inserimento dati'!C33","v":0}]
[]
[null,null,null,null,null,{"$f":"VLOOKUP(F6,B3:C6,2,FALSE)","v":{"$error":"#N/A"}}]